bitfinex/quotes_ETHUSD_20260302
["timestamp","ask_amount","ask_price","bid_price","bid_amount"]
[1772485661963,0.002,2035.0,2034.8,0.77034998]
[1772485662195,0.002,2035.5,2035.0,0.91883497]
[1772485662380,0.002,2035.7,2035.3,3.18425942]
[1772485662669,0.002,2035.7,2035.4,2.16134998]
[1772485662865,0.79385952,2036.1,2035.5,0.76934998]
[1772485663268,2.02154983,2036.4,2035.5,0.76934998]
[1772485663891,0.79385952,2036.4,2035.7,3.18425942]
[1772485664091,0.79385952,2036.4,2035.8,0.76934998]
[1772485664467,7.32454143,2037.0,2035.8,0.76934998]
[1772485664468,0.79385952,2036.7,2035.9,0.76934998]
[1772485664671,0.79385952,2037.4,2036.5,0.76934998]
[1772485664867,0.79385952,2037.4,2036.4,2.41490944]
[1772485664868,0.79385952,2037.3,2036.6,1.392]
[1772485666279,1.22717455,2037.2,2036.6,2.6194776]
[1772485666599,1.22717455,2037.2,2036.2,1.391]
[1772485666600,0.79385952,2037.1,2036.2,1.391]
[1772485666775,0.79385952,2037.1,2036.2,2.16034998]
[1772485667098,0.79385952,2037.0,2036.2,1.391]
[1772485668285,0.74277211,2036.8,2035.8,2.14215766]
[1772485668673,0.74277211,2036.8,2035.9,0.75215766]
[1772485670375,1.22747581,2036.7,2036.0,1.22789783]
[1772485670578,0.74277211,2036.8,2036.0,1.98005549]
[1772485670579,1.97021998,2036.8,2036.0,1.98005549]
[1772485670874,1.22744787,2036.8,2036.1,0.75215766]
[1772485671798,1.22744787,2036.8,2036.0,1.22789783]
[1772485671799,0.74277211,2036.7,2036.0,1.22789783]
[1772485672375,0.74277211,2036.7,2035.9,2.61691099]
[1772485672989,1.22753608,2036.6,2035.9,2.61691099]
[1772485673393,1.22753608,2036.6,2035.9,3.36906865]
[1772485673597,1.22753608,2036.6,2036.1,0.001]
[1772485673993,1.22744008,2036.8,2036.1,0.001]
[1772485675000,1.97214211,2036.9,2036.2,1.97993489]
[1772485677703,0.74277211,2036.8,2036.2,1.97993489]
[1772485677903,0.74277211,2036.8,2036.2,1.22777723]
[1772485679478,0.002,2036.9,2036.2,0.75215766]
[1772485679677,1.97213486,2036.9,2036.2,0.75215766]
[1772485681796,0.002,2036.9,2036.4,0.75215766]
[1772485682312,0.002,2036.9,2036.1,0.001]
[1772485682313,2.41490944,2036.8,2036.1,0.001]
[1772485682618,0.74277211,2036.7,2035.9,0.001]
[1772485683507,0.74277211,2036.7,2035.9,1.22894138]
[1772485684199,1.97030819,2036.6,2035.9,1.98109904]
[1772485684595,0.74277211,2036.6,2036.0,0.75215766]
[1772485684799,1.2275234,2036.7,2036.0,0.75215766]
[1772485685424,1.2275234,2036.7,2036.0,2.13915766]
[1772485685597,1.97029551,2036.7,2036.0,2.13915766]
[1772485685798,0.74277211,2036.6,2036.0,2.13915766]
[1772485686119,1.97036378,2036.6,2036.1,1.22783753]
[1772485686517,1.97036378,2036.6,2036.2,0.001]
[1772485686718,0.002,2036.5,2036.2,0.001]
[1772485687250,0.74477211,2036.5,2036.2,0.001]
[1772485687526,0.74477211,2036.5,2036.0,0.001]
[1772485688856,1.22765664,2036.4,2036.0,0.001]
[1772485689055,1.97042875,2036.4,2036.0,0.001]
[1772485689278,0.74277211,2036.2,2035.7,0.001]
[1772485690857,0.74277211,2036.0,2035.7,0.001]
[1772485691669,0.74277211,2036.0,2035.0,0.75215766]
[1772485691876,0.74277211,2035.9,2035.1,5.30398047]
[1772485692233,0.74277211,2035.9,2035.1,6.05613813]
[1772485692684,0.74277211,2035.9,2035.1,4.07555667]
[1772485692838,0.74277211,2035.6,2035.1,4.07555667]
[1772485693951,0.74277211,2035.6,2035.1,5.30398646]
[1772485695332,1.97095356,2035.6,2035.1,5.30399227]
[1772485695531,1.22805976,2035.8,2035.1,6.05614993]
[1772485695734,1.22805976,2035.8,2035.2,0.75215766]
[1772485696361,0.7220628,2035.7,2035.1,3.82383516]
[1772485696574,0.7220628,2035.7,2034.8,2.6156047]
[1772485696764,0.7220628,2035.7,2034.8,1.387]
[1772485696958,0.7220628,2035.5,2034.8,1.387]
[1772485697158,0.7220628,2035.5,2034.8,2.61562077]
[1772485697696,0.7220628,2035.5,2034.8,1.9445829]
[1772485697697,1.2282598,2035.4,2034.8,1.9445829]
[1772485698096,0.71597961,2036.2,2035.1,0.71496502]
[1772485698390,0.71597961,2035.9,2034.9,1.84696502]
[1772485699391,0.71597961,2035.9,2035.0,0.71496502]
[1772485700000,2.41490944,2036.4,2035.2,0.71496502]
[1772485700295,1.94380766,2036.2,2035.3,0.71496502]
[1772485700695,1.94562371,2036.5,2035.6,0.71496502]
[1772485701468,0.71597961,2036.4,2035.6,0.71496502]
[1772485701675,0.002,2035.7,2035.6,0.71496502]
[1772485701868,0.002,2035.7,2035.3,0.71496502]
[1772485702296,0.002,2035.7,2035.4,1.2282598]
[1772485704287,0.002,2035.7,2035.4,1.94322482]
[1772485704611,1.94561158,2036.5,2035.5,0.71496502]
[1772485705715,0.71597961,2036.4,2035.3,1.22827244]
[1772485705886,0.71597961,2036.4,2035.3,2.61727244]
[1772485706082,0.71597961,2036.4,2035.4,0.71496502]
[1772485707322,0.71597961,2036.3,2035.5,1.22819945]
[1772485707687,0.71597961,2036.3,2035.5,1.94316447]
[1772485708104,0.002,2036.5,2035.9,0.71496502]
[1772485708412,0.002,2036.5,2036.0,0.71496502]
[1772485709211,0.002,2036.5,2036.1,1.22783753]
[1772485709797,0.002,2036.7,2036.2,0.71496502]
[1772485711306,0.002,2036.7,2036.3,1.22771693]
[1772485711630,0.002,2036.7,2036.3,1.94268195]
[1772485713032,0.002,2036.7,2036.1,6.30229769]
[1772485713505,1.22947581,2036.7,2036.1,6.30229769]
[1772485713902,0.002,2036.7,2036.1,7.01726271]
[1772485714126,0.002,2036.7,2036.2,0.71496502]
[1772485714534,1.71996475,2036.9,2036.2,0.71496502]
[1772485714734,0.002,2036.9,2036.2,0.71496502]
[1772485716119,0.002,2036.7,2036.3,1.22771693]
[1772485717140,0.71797961,2036.7,2036.2,1.22774057]
[1772485717734,0.71797961,2036.7,2036.1,2.61881348]
[1772485718220,1.22753608,2036.6,2036.1,2.61881348]
[1772485719771,0.71597961,2036.5,2035.9,1.22791661]
[1772485720262,1.94361688,2036.5,2035.9,1.22791661]
[1772485720459,0.71597961,2036.4,2035.9,1.22791661]
[1772485721862,0.71597961,2036.4,2035.8,1.22800861]
[1772485722761,0.71597961,2036.3,2035.6,1.22813755]
[1772485723064,0.71597961,2036.3,2035.6,1.94310257]
[1772485724763,1.94372237,2036.3,2035.6,1.94310257]
[1772485725534,0.71597961,2036.2,2035.6,1.22813755]
[1772485726681,0.71597961,2036.1,2035.6,1.22813755]
[1772485727041,0.71597961,2036.1,2035.5,1.22815269]
[1772485727442,0.71597961,2036.1,2035.4,2.62722275]
[1772485727948,0.71597961,2036.1,2035.8,0.001]
[1772485728674,0.71597961,2036.1,2035.5,0.001]
[1772485728876,0.72481231,2035.9,2035.5,0.001]
[1772485729867,0.72481231,2035.9,2035.3,0.001]
[1772485730171,0.72481231,2035.7,2035.0,0.001]
[1772485731154,0.72481231,2035.5,2035.0,0.001]
[1772485731771,1.22813912,2035.6,2035.0,0.001]
[1772485731772,1.22798596,2035.9,2035.0,0.77465297]
[1772485731953,0.72481231,2035.9,2035.0,0.77465297]
[1772485732282,0.72481231,2036.2,2035.2,0.77365297]
[1772485732449,1.95259335,2036.2,2035.2,0.77365297]
[1772485732651,0.72481231,2036.1,2035.2,0.77365297]
[1772485732886,0.72481231,2036.1,2035.3,1.397]
[1772485733461,0.72481231,2036.1,2035.4,2.00191277]
[1772485733681,0.72481231,2036.3,2035.4,2.00191277]
[1772485734258,0.72481231,2036.3,2035.5,0.77365297]
[1772485735492,1.95246895,2036.4,2035.5,0.77365297]
[1772485735781,0.72481231,2036.3,2035.6,1.22813912]
[1772485736760,0.72481231,2036.3,2035.5,2.0018033]
[1772485738493,1.95258954,2036.2,2035.5,2.0018033]
[1772485740495,1.95251855,2036.4,2035.6,0.77365297]
[1772485740662,0.72481231,2036.4,2035.6,0.77365297]
[1772485741063,0.72481231,2036.3,2035.6,0.77365297]
[1772485742010,0.002,2036.1,2035.6,0.77365297]
[1772485742388,1.22789783,2036.0,2035.5,0.001]
[1772485742603,1.95271014,2036.0,2035.5,0.001]
[1772485743919,0.72481231,2035.9,2035.3,1.398]
[1772485744297,0.72481231,2035.9,2035.3,2.62631748]
[1772485744508,1.95283077,2035.8,2035.3,1.398]
[1772485744815,1.95283077,2035.8,2035.3,2.62630737]
[1772485745112,4.91167756,2036.0,2035.3,3.39996034]
[1772485745288,1.22984339,2036.1,2035.4,0.77365297]
[1772485745494,0.002,2036.1,2035.4,0.77365297]
[1772485745692,1.22984216,2036.1,2035.4,0.77365297]
[1772485745906,0.002,2036.1,2035.4,0.77365297]
[1772485746213,1.22984837,2036.1,2035.4,0.77365297]
[1772485747094,0.002,2036.1,2035.5,1.22819945]
[1772485749438,0.72681231,2036.1,2035.5,1.22819945]
[1772485750634,0.72681231,2036.1,2035.3,1.398]
[1772485750831,0.72681231,2036.1,2035.3,1.22931707]
[1772485751652,0.72481231,2035.9,2035.3,0.001]
[1772485751814,0.72481231,2035.8,2035.3,0.001]
[1772485752137,0.72481231,2035.8,2035.0,0.001]
[1772485752854,0.72481231,2035.7,2035.0,0.001]
[1772485753853,0.72481231,2035.5,2035.0,0.001]
[1772485754012,0.72481231,2035.3,2035.0,0.001]
[1772485754641,0.72481231,2035.3,2035.2,0.001]
[1772485755346,1.95495143,2035.6,2035.2,0.001]
[1772485755550,2.06581231,2035.5,2035.0,0.001]
[1772485755909,3.2940709,2035.5,2035.0,0.001]
[1772485756113,0.002,2035.6,2035.0,0.77465297]
[1772485757536,1.23013997,2035.6,2035.0,0.77465297]
[1772485757736,0.002,2035.6,2035.0,0.77465297]
[1772485758663,0.002,2035.6,2035.2,0.77680993]
[1772485758874,0.002,2035.8,2035.2,0.77680993]
[1772485760372,1.23001982,2035.8,2035.2,0.77680993]
[1772485760846,0.002,2035.8,2035.3,1.22832014]
[1772485763672,0.002,2035.8,2035.3,2.00513007]
[1772485763878,0.002,2035.8,2035.4,0.77680993]
[1772485766456,0.002,2035.8,2035.5,1.22819945]
[1772485767463,0.002,2035.6,2035.5,1.22819945]
[1772485767665,0.75865755,2035.6,2035.0,0.001]
[1772485768282,0.75865755,2035.6,2035.0,1.22950022]
[1772485769289,0.75665755,2035.4,2035.0,0.001]
[1772485770482,1.337,2035.3,2035.0,0.001]
[1772485770785,0.75665755,2035.2,2035.0,0.001]
[1772485771381,1.98509841,2035.1,2035.0,0.001]
[1772485772301,0.75665755,2035.0,2034.8,0.001]
[1772485773783,0.75665755,2035.2,2034.8,0.001]
[1772485773982,2.64706545,2035.9,2034.8,0.001]
[1772485773983,2.56834884,2035.3,2034.8,0.001]
[1772485774188,1.22834884,2035.3,2034.8,0.001]
[1772485775276,1.98491984,2035.4,2034.8,0.77780993]
[1772485775508,1.98493605,2035.4,2034.8,0.77780993]
[1772485777186,0.75665755,2035.3,2034.8,1.22961086]
[1772485777684,4.9150392,2035.6,2034.9,0.77680993]
[1772485777886,0.09020693,2260.3,2036.1,0.77680993]
[1772485777887,0.08364193,2036.9,2036.1,0.77680993]
[1772485778201,1e-08,2036.9,2036.3,3.19035005]
[1772485778506,0.002,2037.0,2036.3,3.19035005]
[1772485778685,1.343,2037.0,2036.4,0.77680993]
[1772485779110,1.266,2037.1,2036.5,1.22759636]
[1772485779697,0.002,2037.1,2036.6,3.19035005]
[1772485780199,0.75665755,2037.5,2036.6,3.19035005]
[1772485780404,1.058,2037.4,2036.6,3.19035005]
[1772485780599,0.75665755,2037.5,2036.6,3.19035005]
[1772485780805,0.857,2037.4,2036.6,3.19035005]
[1772485781321,1.06,2037.9,2036.9,0.77680993]
[1772485781524,1.81665755,2037.9,2036.9,0.77680993]
[1772485782541,0.75665755,2037.4,2036.3,4.9108391]
[1772485782919,2.09465755,2037.3,2036.3,4.9108391]
[1772485783796,1.338,2037.2,2036.3,0.77680993]
[1772485784700,1.337,2037.1,2036.3,0.77680993]
[1772485785428,1.337,2037.2,2036.3,0.77680993]
[1772485785830,1.337,2037.2,2036.4,1.22765664]
[1772485786739,2.09365755,2037.2,2036.4,1.22765664]
[1772485787548,2.63288688,2037.1,2036.4,1.22765664]
[1772485787742,2.63288688,2037.1,2036.3,6.16008229]
[1772485788235,1.29688688,2037.1,2036.3,6.16008229]
[1772485788441,1.336,2037.2,2036.4,1.2494557]
[1772485789739,2.63288688,2037.2,2036.5,1.22759636]
[1772485789941,1.29688688,2037.1,2036.4,1.22762872]
[1772485791320,1.335,2037.0,2036.4,1.22762872]
[1772485792245,2.56229541,2037.0,2036.6,0.001]
[1772485792424,2.56429541,2037.0,2036.6,0.001]
[1772485793248,3.86118229,2037.0,2036.6,0.001]
[1772485794679,1.29688688,2036.9,2036.4,0.001]
[1772485795332,1.336,2036.8,2036.4,1.2504557]
[1772485795765,1.336,2036.8,2036.4,0.001]
[1772485797673,2.56342063,2036.8,2036.4,0.001]
[1772485798370,0.002,2037.0,2036.4,0.001]
[1772485798672,1.337,2036.9,2036.4,1.2504557]
[1772485798833,1.337,2036.9,2036.5,1.22759636]
[1772485800472,3.86124782,2036.9,2036.4,0.001]
[1772485800770,1.22747581,2036.7,2036.4,0.001]
[1772485800934,1.29688688,2036.7,2036.4,0.001]
[1772485801131,1.338,2036.6,2036.4,0.001]
[1772485802361,2.52428377,2036.9,2036.4,0.001]
[1772485802683,0.002,2037.0,2036.4,1.2504557]
[1772485802890,1.339,2036.9,2036.5,1.22759636]
[1772485803056,1.339,2036.9,2036.5,2.47705206]
[1772485803257,0.002,2037.0,2036.6,1.2494557]
[1772485805179,0.002,2037.0,2036.7,1.22747581]
[1772485805765,0.002,2037.0,2036.6,0.001]
[1772485806091,2.63488688,2036.9,2036.4,0.001]
[1772485806308,2.63488688,2036.9,2036.1,0.001]
[1772485806309,1.29688688,2036.8,2036.1,0.001]
[1772485806459,1.338,2036.9,2036.1,0.001]
[1772485806460,1.29688688,2036.6,2036.1,0.001]
[1772485806791,2.63588688,2036.5,2036.1,0.001]
[1772485806991,1.29688688,2036.4,2035.4,2.47766824]
[1772485807158,1.29688688,2036.2,2035.4,2.47766824]
[1772485807780,1.338,2036.1,2035.4,2.47766824]
[1772485808493,1.338,2036.0,2035.5,1.2494557]
[1772485809992,1.338,2036.0,2035.6,1.22813912]
[1772485810164,2.56590771,2036.0,2035.6,1.22813912]
[1772485810692,2.56590771,2036.0,2035.2,1.2494557]
[1772485810693,3.86279459,2036.0,2035.2,1.2494557]
[1772485810883,1.338,2035.9,2035.3,2.47777584]
[1772485811257,2.52479459,2036.0,2035.3,2.47777584]
[1772485811457,2.52464245,2036.3,2035.4,1.2494557]
[1772485811675,1.338,2036.2,2035.4,1.2494557]
[1772485812274,1.22783753,2036.1,2035.5,1.22819945]
[1772485813587,1.338,2036.0,2035.5,2.47765515]
[1772485816492,2.56590688,2036.0,2035.5,2.47765515]
[1772485816699,1.339,2036.0,2035.7,0.001]
[1772485818682,1.22795815,2035.9,2035.7,0.001]
[1772485818893,2.56694576,2036.0,2035.7,0.001]
[1772485819214,4.91088224,2036.3,2035.7,1.25345685]
[1772485819215,1.23669919,2036.3,2035.7,1.25345685]
[1772485819372,1.341,2036.0,2035.7,1.25345685]
[1772485819571,1.23669919,2036.5,2035.7,1.25345685]
[1772485819572,1.341,2036.1,2035.7,1.25345685]
[1772485819769,1.23669919,2036.5,2035.7,1.25345685]
[1772485819974,2.56853608,2036.6,2035.9,1.25245685]
[1772485820174,3.80523527,2036.6,2035.9,1.25245685]
[1772485820916,3.80523527,2036.6,2035.8,4.91206479]
[1772485820917,1.23669919,2036.5,2035.8,4.91206479]
[1772485821072,1.23669919,2036.5,2035.7,1.22906808]
[1772485821499,1.341,2036.4,2035.8,1.25245685]
[1772485821891,1.23669919,2036.5,2035.8,1.25245685]
[1772485822096,1.341,2036.3,2035.8,1.25245685]
[1772485823282,2.56876701,2036.3,2035.8,2.48042521]
[1772485825310,1.342,2036.3,2035.8,2.48042521]
[1772485826520,1.342,2036.3,2035.9,1.25245685]
[1772485827412,3.80643781,2036.3,2035.8,1.22799492]
[1772485829694,1.23669919,2036.3,2035.8,1.22799492]
[1772485830009,1.343,2036.3,2035.8,2.48045177]
[1772485830431,0.002,2036.1,2035.8,2.48045177]
[1772485830610,1.23669919,2036.0,2035.7,0.001]
[1772485830781,1.23669919,2036.0,2035.7,1.22906028]
[1772485830986,1.23669919,2036.0,2035.7,0.001]
[1772485831184,1.342,2035.9,2035.7,0.001]
[1772485832313,2.57869919,2035.9,2035.7,0.001]
[1772485835880,1.23669919,2035.9,2035.7,0.001]
[1772485836059,0.002,2036.1,2035.7,1.25345685]
[1772485836557,1.23869919,2036.1,2035.7,0.001]
[1772485837160,1.23669919,2036.0,2035.7,0.001]
[1772485837466,1.23669919,2035.8,2035.2,0.001]
[1772485837678,1.23669919,2035.6,2035.3,0.00099999]
[1772485837849,1.23669919,2035.5,2035.3,0.00099999]
[1772485838270,1.23669919,2035.5,2035.2,0.001]
[1772485838454,1.23669919,2035.5,2035.2,0.00199999]
[1772485838847,1.23669919,2035.7,2035.2,0.00199999]
[1772485839049,1.344,2035.6,2035.2,0.00199999]
[1772485839248,1.344,2035.9,2035.2,1.25445684]
[1772485839882,0.002,2036.1,2035.6,2.48059597]
[1772485841481,0.002,2036.1,2035.7,0.00099999]
[1772485842852,1.345,2036.1,2035.7,0.00099999]
[1772485843385,0.002,2035.9,2035.7,0.00099999]
[1772485846652,1.345,2036.1,2035.7,1.25345684]
[1772485847054,1.343,2036.2,2035.7,1.25345684]
[1772485847582,0.002,2036.3,2035.8,1.23349713]
[1772485848788,0.002,2036.3,2035.9,2.46145528]
[1772485850765,0.002,2036.3,2036.0,1.23349713]
[1772485854484,0.002,2036.3,2036.1,1.22783753]
[1772485855895,0.002,2036.3,2036.1,1.22883752]
[1772485857992,0.002,2036.3,2036.1,1.23349713]
[1772485857993,0.00100001,2036.3,2036.1,1.23349713]
[1772485860694,1e-08,2037.0,2036.4,1.26914703]
[1772485862472,1e-08,2037.0,2036.6,1.26914703]
[1772485862692,0.01295492,2037.5,2036.8,1.26914703]
[1772485863064,0.00993189,2037.7,2036.8,1.26914703]
[1772485864700,0.00993189,2037.7,2037.2,1.26914703]
[1772485865004,2.88106654,2038.0,2037.3,1.27411297]
[1772485865171,1e-08,2038.0,2037.3,1.27411297]
[1772485865905,1e-08,2038.0,2037.4,1.27411297]
[1772485866427,1e-08,2038.0,2037.5,1.27411297]
[1772485866771,1e-08,2038.0,2037.7,1.27411297]
[1772485867796,1e-08,2038.0,2037.5,4.90773458]
[1772485867797,1e-08,2038.0,2037.5,1.22695036]
[1772485868014,0.002,2037.8,2037.5,2.50106333]
[1772485868306,0.002,2037.8,2037.0,1.426]
[1772485868471,0.002,2037.8,2037.1,1.22723479]
[1772485868665,1.22881322,2037.8,2037.1,1.22723479]
[1772485869271,0.002,2037.8,2037.1,1.22723479]
[1772485869603,0.002,2037.8,2037.1,2.50134776]
[1772485870795,0.002,2037.8,2037.2,1.27411297]
[1772485872807,0.002,2037.8,2037.4,1.27411297]
[1772485875207,0.002,2037.8,2037.6,1.27411297]
[1772485876593,0.00200001,2038.0,2037.6,1.27411297]
[1772485877904,0.00200001,2038.0,2037.4,2.65801315]
[1772485878235,0.00200001,2038.0,2037.4,1.22701315]
[1772485879019,0.00200001,2038.0,2037.4,2.50112612]
[1772485879231,0.00200001,2038.0,2037.5,1.27411297]
[1772485880300,0.002,2037.8,2037.6,1.22693364]
[1772485880498,0.002,2037.8,2037.6,2.50104661]
[1772485881802,0.00200001,2038.0,2037.6,2.50104661]
[1772485883123,0.00200001,2038.0,2037.6,1.22693364]
[1772485883428,0.00200001,2038.0,2037.7,1.27411297]
[1772485885439,0.00200001,2038.0,2037.8,1.22681322]
[1772485887833,0.00200001,2038.0,2037.8,2.50092619]
[1772485890741,0.002,2038.3,2037.8,2.50092619]
[1772485891114,0.002,2038.3,2037.8,1.22681322]
[1772485892511,0.002,2038.3,2037.8,1.22781322]
[1772485892714,0.002,2038.1,2037.8,1.22781322]
[1772485892935,0.002,2038.1,2037.8,2.50192619]
[1772485894839,0.002,2038.1,2037.9,1.27411297]
[1772485895314,0.002,2038.3,2037.9,1.27411297]
[1772485899848,0.002,2038.3,2037.8,0.001]
[1772485900056,2.41011405,2038.3,2037.8,0.001]
[1772485900465,0.48178649,2038.2,2037.8,1.22780619]
[1772485900789,1.311,2038.3,2037.9,1.27411297]
[1772485900958,0.002,2038.3,2037.9,1.27411297]
[1772485903559,0.002,2038.3,2038.0,1.22669283]
[1772485903762,0.002,2038.3,2037.9,2.50082248]
[1772485906651,0.002,2038.3,2038.0,0.001]
[1772485906792,0.002,2038.1,2038.0,0.001]
[1772485909052,2.41046475,2038.1,2036.9,4.39036103]
[1772485909214,2.40846475,2037.7,2037.1,1.27411297]
[1772485909540,1.308,2037.9,2037.1,1.27411297]
[1772485914229,1.22863264,2038.1,2037.3,1.27411297]
[1772485914567,0.002,2038.1,2037.3,1.27411297]
[1772485916462,0.002,2038.1,2037.5,1.27411297]
[1772485917559,0.002,2038.1,2037.1,1.27411297]
[1772485917560,1.66110029,2037.9,2037.1,1.27411297]
[1772485917755,1.66110029,2037.9,2037.1,2.50133301]
[1772485918058,1.66110029,2037.9,2037.1,1.27411297]
[1772485919538,1.22681322,2037.8,2037.3,0.001]
[1772485920564,2.53367432,2038.1,2037.3,1.27511297]
[1772485921736,2.53363843,2038.1,2037.5,1.27411297]
[1772485921936,1.307,2038.1,2037.5,1.27411297]
[1772485922246,2.53363559,2038.1,2037.5,1.27411297]
[1772485922935,0.002,2038.1,2037.5,1.27411297]
[1772485923837,0.002,2038.1,2037.7,1.27411297]
[1772485924845,0.002,2038.1,2037.5,1.27411297]
[1772485925046,2.40846475,2038.0,2037.3,0.001]
[1772485925263,2.40846475,2037.7,2037.3,0.001]
[1772485925468,1.304,2037.6,2037.3,0.001]
[1772485925671,1.304,2037.6,2037.0,0.001]
[1772485925984,1.22699386,2037.5,2037.0,0.001]
[1772485926333,1.22699386,2037.5,2036.8,1.27511297]
[1772485926334,2.40846475,2037.4,2036.8,1.27511297]
[1772485926637,2.40846475,2037.1,2036.6,0.001]
[1772485926838,1.304,2037.0,2036.6,0.001]
[1772485927767,1.304,2037.1,2036.7,1.27411297]
[1772485928758,2.5312784,2037.1,2036.7,1.27411297]
[1772485929658,2.5312784,2037.1,2036.6,0.001]
[1772485929838,2.5312784,2037.1,2036.6,1.27511297]
[1772485930443,1.306,2037.3,2036.7,1.27411297]
[1772485930764,1.22717455,2037.2,2036.6,1.27511297]
[1772485931067,1.22717455,2037.2,2036.6,0.001]
[1772485932166,1.307,2037.1,2036.6,1.27511297]
[1772485932472,1.307,2037.1,2036.9,0.001]
[1772485932661,1.22729504,2037.0,2036.9,0.001]
[1772485933353,1.22729504,2037.0,2036.7,0.001]
[1772485935262,1.22729504,2037.0,2036.4,0.001]
[1772485935461,1.22729504,2037.0,2036.1,0.001]
[1772485935462,2.40846475,2036.8,2036.1,1.27511297]
[1772485935673,1.312,2036.7,2036.1,1.27511297]
[1772485936280,1.312,2036.7,2035.9,0.63805649]
[1772485936725,1.22753608,2036.6,2035.9,0.63805649]
[1772485937189,1.22753608,2036.6,2035.9,0.001]
[1772485938010,1.22753608,2036.6,2035.9,0.63805649]
[1772485939573,0.3629435,2036.5,2035.7,0.48786822]
[1772485939776,1.313,2036.4,2035.8,0.48686822]
[1772485940082,1.6759435,2036.4,2035.8,0.48686822]
[1772485941698,1.22771693,2036.3,2035.8,0.48686822]
[1772485943392,1.22771693,2036.3,2035.8,1.71488497]
[1772485943713,1.22771693,2036.3,2035.8,0.48686822]
[1772485945436,1.22771693,2036.3,2036.0,0.001]
[1772485945638,1.22771693,2036.3,2035.7,0.001]
[1772485945639,0.3629435,2036.2,2035.7,0.001]
[1772485945838,0.3629435,2036.2,2035.4,1.22923389]
[1772485945839,0.3629435,2036.2,2035.8,0.001]
[1772485946050,0.3629435,2036.2,2035.4,0.48786822]
[1772485946543,0.3629435,2036.2,2035.5,0.001]
[1772485948440,0.3629435,2036.0,2035.5,0.001]
[1772485948646,0.3629435,2035.8,2035.5,0.001]
[1772485949146,0.3629435,2035.8,2034.4,0.001]
[1772485949147,0.49371672,2035.5,2034.4,0.001]
[1772485949317,2.90218147,2034.8,2034.1,0.48786822]
[1772485949508,1.317,2034.7,2034.1,0.48786822]
[1772485949821,1.317,2034.7,2033.3,4.91794467]
[1772485949822,0.49371672,2034.4,2033.7,0.48686822]
[1772485950032,1.81071672,2034.3,2033.4,0.48686822]
[1772485950205,0.49371672,2034.3,2033.4,0.48686822]
[1772485950407,1.22898436,2034.2,2033.5,1.22940742]
[1772485950649,3.38570043,2034.0,2033.3,3.0196424]
[1772485950817,3.87941715,2034.0,2033.0,0.48686822]
[1772485951018,0.49371672,2033.9,2033.0,0.48686822]
[1772485951206,3.38570043,2034.0,2033.0,0.48686822]
[1772485951207,3.87941715,2033.7,2033.0,0.48686822]
[1772485951413,6.77140086,2034.0,2032.7,0.48686822]
[1772485951414,3.38570043,2033.4,2032.7,0.48686822]
[1772485951635,3.38570043,2033.4,2032.5,1.22999447]
[1772485952036,3.38570043,2033.4,2032.5,1.71686269]
[1772485952347,3.87941715,2033.4,2032.5,1.71688024]
[1772485952937,1.22952835,2033.3,2032.5,1.71688024]
[1772485953140,0.49371672,2033.0,2032.2,0.48686822]
[1772485953328,3.38570043,2032.8,2031.9,1.71721413]
[1772485953926,3.38570043,2032.8,2032.0,0.48686822]
[1772485954120,6.00263577,2033.2,2032.0,0.48686822]
[1772485954435,6.00263577,2033.2,2032.2,0.48686822]
[1772485954627,1.80971672,2033.1,2032.2,0.48686822]
[1772485955025,2.54566361,2033.1,2032.3,1.71700156]
[1772485955331,3.03938033,2033.1,2032.3,0.48686822]
[1772485955537,1.72338033,2033.1,2032.2,1.23019139]
[1772485955860,1.80971672,2033.0,2032.2,0.48686822]
[1772485956151,3.87941715,2032.9,2031.9,1.71724147]
[1772485956457,1.316,2032.8,2032.0,0.48686822]
[1772485956651,4.80211577,2032.7,2032.0,0.48686822]
[1772485957055,4.30211577,2032.7,2032.3,0.48686822]
[1772485958556,4.30211577,2032.7,2032.2,1.23019387]
[1772485958753,4.20848897,2032.7,2032.3,0.48686822]
[1772485959051,4.20848897,2032.7,2032.4,1.23007282]
[1772485959357,3.48084266,2033.2,2032.4,1.71794104]
[1772485959652,1.317,2033.1,2032.4,1.71794104]
[1772485959855,1.317,2033.1,2032.5,0.48686822]
[1772485960055,1.22945581,2033.5,2032.5,0.48686822]
[1772485960224,2.50768798,2033.5,2032.5,0.48686822]
[1772485960554,3.7371022,2033.5,2032.5,0.48686822]
[1772485960757,3.7371022,2033.5,2032.6,0.48686822]
[1772485960758,2.50768798,2033.5,2032.6,0.48686822]
[1772485961063,1.316,2033.8,2032.8,0.48686822]
[1772485961359,3.0408845,2033.9,2032.8,0.48686822]
[1772485961662,3.04088787,2033.9,2032.8,0.48686822]
[1772485961826,1.72488787,2033.9,2032.8,0.48686822]
[1772485962027,1.318,2033.9,2032.8,0.48686822]
[1772485962228,2.547171,2033.9,2032.8,0.48686822]
[1772485962460,1.318,2033.9,2032.8,0.48686822]
[1772485962631,2.54717802,2033.9,2032.8,0.48686822]
[1772485962984,1.318,2033.9,2032.8,0.48686822]
[1772485963733,1.318,2033.9,2033.0,0.48686822]
[1772485963734,0.002,2033.9,2033.0,0.48686822]
[1772485965567,0.002,2034.1,2033.2,0.48686822]
[1772485965730,0.002,2034.1,2033.4,0.48686822]
[1772485967873,0.002,2034.1,2033.6,0.48071474]
[1772485968880,0.002,2034.4,2033.9,0.48071474]
[1772485969659,0.002,2034.4,2034.0,1.22910521]
[1772485971757,0.002,2034.4,2034.0,1.70981995]
[1772485972150,0.47224529,2035.0,2034.1,0.48071474]
[1772485972477,0.47224529,2035.2,2034.2,0.48071474]
[1772485973287,0.002,2034.7,2034.3,0.48071474]
[1772485973463,0.47224529,2035.3,2034.3,0.48071474]
[1772485973981,0.47224529,2035.1,2034.4,1.22886354]
[1772485977091,0.47224529,2034.9,2034.3,1.22887739]
[1772485977893,4.91393527,2035.1,2034.3,1.22887739]
[1772485977894,0.47224529,2035.1,2034.3,1.22887739]
[1772485978101,1.308,2035.2,2034.4,0.48071474]
[1772485978289,1.78024529,2035.2,2034.4,0.48071474]
[1772485979098,1.22844086,2035.1,2034.5,1.22880314]
[1772485979868,0.47224529,2035.0,2034.4,1.2288231]
[1772485980095,0.47224529,2035.0,2034.3,1.22888172]